[Event "FIDE Women World Blitz 2021"]
[Site "Warsaw"]
[Date "2021.12.29"]
[Round "8.11"]
[White "Paehtz, Elisabeth"]
[Black "Gaponenko, Inna"]
[Result "1-0"]
[ECO "B07"]
[WhiteElo "2485"]
[BlackElo "2339"]
[Annotator "ChessBase"]
[PlyCount "155"]
[EventDate "2021.12.29"]
[EventType "swiss"]
[EventCountry "POL"]
[Tiebreak "Cut1 Buchholz"]
[SourceTitle "playchess.com"]
[Source "ChessBase"]
[SourceQuality "1"]
[TimeControl "180+2"]

1. d4 {[%emt 0:00:01]} g6 {[%emt 0:00:01]} 2. Nf3 {[%emt 0:00:03]} Bg7 {
[%emt 0:00:01]} 3. c3 {[%emt 0:00:02]} d6 {[%emt 0:00:04]} 4. Bg5 {[%emt 0:00:
02]} h6 {[%emt 0:00:02]} 5. Bh4 {[%emt 0:00:02]} Nf6 {[%emt 0:00:04]} 6. Nbd2 {
[%emt 0:00:02]} Nbd7 {[%emt 0:00:03]} 7. e4 {[%emt 0:00:01]} e5 {[%emt 0:00:02]
} 8. Bd3 {[%emt 0:00:03]} O-O {[%emt 0:00:03]} 9. O-O {[%emt 0:00:02]} g5 {
[%emt 0:01:01]} 10. Bg3 {[%emt 0:00:01]} Nh5 {[%emt 0:00:01]} 11. dxe5 {
[%emt 0:00:09]} Nxg3 {[%emt 0:00:10]} 12. hxg3 {[%emt 0:00:03]} Nxe5 {[%emt 0:
00:01]} 13. Nxe5 {[%emt 0:00:05]} dxe5 {[%emt 0:00:16]} 14. Qe2 {[%emt 0:00:10]
} Be6 {[%emt 0:00:01]} 15. Nc4 {[%emt 0:00:11]} Bxc4 {[%emt 0:00:08]} 16. Bxc4
{[%emt 0:00:02]} Qe7 {[%emt 0:00:01]} 17. Bb3 {[%emt 0:00:07]} Rad8 {[%emt 0:
00:05]} 18. Rad1 {[%emt 0:00:06]} Rxd1 {[%emt 0:00:01]} 19. Rxd1 {[%emt 0:00:
01]} Rd8 {[%emt 0:00:01]} 20. Rxd8+ {[%emt 0:00:02]} Qxd8 {[%emt 0:00:01]} 21.
Qb5 {[%emt 0:00:06]} b6 {[%emt 0:00:41]} 22. Bd5 {[%emt 0:00:02]} Bf8 {[%emt 0:
00:06]} 23. Qc6 {[%emt 0:00:19]} Kg7 {[%emt 0:00:10]} 24. b4 {[%emt 0:00:04]}
a5 {[%emt 0:00:03]} 25. bxa5 {[%emt 0:00:10]} bxa5 {[%emt 0:00:01]} 26. Qb5 {
[%emt 0:00:04]} c5 {[%emt 0:00:19]} 27. a4 {[%emt 0:00:15]} Be7 {[%emt 0:00:06]
} 28. Qb3 {[%emt 0:00:25]} Qe8 {[%emt 0:00:08]} 29. Bc4 {[%emt 0:00:09]} Bd6 {
[%emt 0:00:03]} 30. Qb7 {[%emt 0:00:07]} Qe7 {[%emt 0:00:04]} 31. Qc6 {[%emt 0:
00:06]} Qc7 {[%emt 0:00:04]} 32. Qd5 {[%emt 0:00:03]} Qe7 {[%emt 0:00:02]} 33.
Kf1 {[%emt 0:00:09]} Qc7 {[%emt 0:00:04]} 34. Ke2 {[%emt 0:00:05]} Qe7 {
[%emt 0:00:01]} 35. Qc6 {[%emt 0:00:08]} Qc7 {[%emt 0:00:03]} 36. Qe8 {[%emt 0:
00:03]} Qe7 {[%emt 0:00:02]} 37. Qa8 {[%emt 0:00:04]} Bc7 {[%emt 0:00:03]} 38.
Bb5 {[%emt 0:00:11]} Qd8 {[%emt 0:00:04]} 39. Qc6 {[%emt 0:00:05]} Qd6 {
[%emt 0:00:01]} 40. Qxd6 {[%emt 0:00:07]} Bxd6 {[%emt 0:00:01]} 41. Kd3 {
[%emt 0:00:00]} Kf6 {[%emt 0:00:03]} 42. Bd7 {[%emt 0:00:01]} Ke7 {[%emt 0:00:
01]} 43. Bg4 {[%emt 0:00:01]} Bc7 {[%emt 0:00:04]} 44. Kc4 {[%emt 0:00:01]} Kd6
{[%emt 0:00:01]} 45. Kb5 {[%emt 0:00:04]} Bd8 {[%emt 0:00:01]} 46. f3 {[%emt 0:
00:02]} f6 {[%emt 0:00:02]} 47. Bh5 {[%emt 0:00:02]} Bc7 {[%emt 0:00:03]} 48.
Ka6 {[%emt 0:00:02]} Bd8 {[%emt 0:00:03]} 49. Kb7 {[%emt 0:00:00]} c4 {[%emt 0:
00:02]} 50. Bf7 {[%emt 0:00:02]} Kc5 {[%emt 0:00:01]} 51. Kc8 {[%emt 0:00:07]}
Be7 {[%emt 0:00:02]} 52. Kd7 {[%emt 0:00:02]} Bf8 {[%emt 0:00:04]} 53. Ke6 {
[%emt 0:00:02]} Bg7 {[%emt 0:00:02]} 54. Be8 {[%emt 0:00:02]} Bh8 {[%emt 0:00:
02]} 55. Kf7 {[%emt 0:00:02]} f5 {[%emt 0:00:02]} 56. exf5 {[%emt 0:00:01]} e4
{[%emt 0:00:00]} 57. fxe4 {[%emt 0:00:03]} Bxc3 {[%emt 0:00:01]} 58. Ke6 {
[%emt 0:00:02]} Be1 {[%emt 0:00:04]} 59. Bb5 {[%emt 0:00:03]} c3 {[%emt 0:00:
01]} 60. Bd3 {[%emt 0:00:02]} Bxg3 {[%emt 0:00:02]} 61. f6 {[%emt 0:00:01]} Bd6
{[%emt 0:00:02]} 62. e5 {[%emt 0:00:02]} Bf8 {[%emt 0:00:01]} 63. Bb1 {[%emt 0:
00:08]} Kd4 {[%emt 0:00:01]} 64. Kf5 {[%emt 0:00:01]} Kd5 {[%emt 0:00:03]} 65.
e6 {[%emt 0:00:01]} Kd6 {[%emt 0:00:00]} 66. Bc2 {[%emt 0:00:03]} g4 {[%emt 0:
00:05]} 67. g3 {[%emt 0:00:02]} h5 {[%emt 0:00:01]} 68. e7 {[%emt 0:00:01]}
Bxe7 {[%emt 0:00:01]} 69. fxe7 {[%emt 0:00:01]} Kxe7 {[%emt 0:00:01]} 70. Kg5 {
[%emt 0:00:01]} Kd6 {[%emt 0:00:03]} 71. Kxh5 {[%emt 0:00:01]} Ke5 {[%emt 0:00:
01]} 72. Kxg4 {[%emt 0:00:01]} Kd4 {[%emt 0:00:00]} 73. Kf3 {[%emt 0:00:00]}
Kc4 {[%emt 0:00:01]} 74. g4 {[%emt 0:00:01]} Kb4 {[%emt 0:00:01]} 75. g5 {
[%emt 0:00:01]} Ka3 {[%emt 0:00:01]} 76. g6 {[%emt 0:00:01]} Kb2 {[%emt 0:00:
01]} 77. Be4 {[%emt 0:00:01]} c2 {[%emt 0:00:00]} 78. Bxc2 {[%emt 0:00:01]} 1-0

[Event "FIDE Women World Blitz 2021"]
[Site "Warsaw"]
[Date "2021.12.29"]
[Round "8.11"]
[White "Parol, Pola"]
[Black "Heredia Serrano, Carla"]
[Result "1-0"]
[ECO "B19"]
[WhiteElo "1823"]
[BlackElo "2138"]
[Annotator "NA"]
[PlyCount "155"]
[EventDate "2021.12.29"]
[EventType "swiss"]
[EventCountry "POL"]
[Tiebreak "Cut1 Buchholz"]
[SourceTitle "playchess.com"]
[Source "ChessBase"]
[SourceQuality "1"]
[TimeControl "180+2"]

1. e4 {[%emt 0:00:01]} c6 {[%emt 0:00:01]} 2. d4 {[%emt 0:00:01]} d5 {[%emt 0:
00:00]} 3. Nc3 {[%emt 0:00:00]} dxe4 {[%emt 0:00:01]} 4. Nxe4 {[%emt 0:00:01]}
Bf5 {[%emt 0:00:01]} 5. Ng3 {[%emt 0:00:01]} Bg6 {[%emt 0:00:00]} 6. h4 {
[%emt 0:00:01]} h6 {[%emt 0:00:01]} 7. Nf3 {[%emt 0:00:01]} Nd7 {[%emt 0:00:01]
} 8. h5 {[%emt 0:00:01]} Bh7 {[%emt 0:00:00]} 9. Bd3 {[%emt 0:00:01]} Bxd3 {
[%emt 0:00:01]} 10. Qxd3 {[%emt 0:00:01]} e6 {[%emt 0:00:01]} 11. Bd2 {[%emt 0:
00:02]} Ngf6 {[%emt 0:00:02]} 12. O-O-O {[%emt 0:00:03]} Be7 {[%emt 0:00:00]}
13. Ne4 {[%emt 0:00:01]} Qb6 {[%emt 0:00:08]} 14. c4 {[%emt 0:00:23]} Rd8 {
[%emt 0:00:03]} 15. Bc3 {[%emt 0:00:09]} Qa6 {[%emt 0:00:09]} 16. Kb1 {[%emt 0:
00:05]} b5 {[%emt 0:00:07]} 17. cxb5 {[%emt 0:00:12]} cxb5 {[%emt 0:00:07]} 18.
Nxf6+ {[%emt 0:00:15]} Nxf6 {[%emt 0:00:14]} 19. Qe2 {[%emt 0:00:23]} Qc6 {
[%emt 0:00:23]} 20. Ne5 {[%emt 0:00:08]} Qe4+ {[%emt 0:00:01]} 21. Qxe4 {
[%emt 0:00:10]} Nxe4 {[%emt 0:00:01]} 22. Rhf1 {[%emt 0:00:11]} Rc8 {[%emt 0:
00:32]} 23. Be1 {[%emt 0:00:05]} O-O {[%emt 0:00:11]} 24. f3 {[%emt 0:00:01]}
Nf6 {[%emt 0:00:01]} 25. g4 {[%emt 0:00:05]} Rfd8 {[%emt 0:00:03]} 26. Bf2 {
[%emt 0:00:07]} Rd5 {[%emt 0:00:02]} 27. Rc1 {[%emt 0:00:06]} Re8 {[%emt 0:01:
03]} 28. Rc6 {[%emt 0:00:24]} Bd8 {[%emt 0:00:09]} 29. Rc8 {[%emt 0:00:34]} Bb6
{[%emt 0:00:04]} 30. Rxe8+ {[%emt 0:00:01]} Nxe8 {[%emt 0:00:01]} 31. Rd1 {
[%emt 0:00:07]} Kf8 {[%emt 0:00:08]} 32. Nc6 {[%emt 0:00:06]} a5 {[%emt 0:00:
08]} 33. Ne5 {[%emt 0:00:07]} Ke7 {[%emt 0:00:07]} 34. Rc1 {[%emt 0:00:03]} Kd8
{[%emt 0:00:06]} 35. Nc6+ {[%emt 0:00:03]} Kd7 {[%emt 0:00:02]} 36. Ne5+ {
[%emt 0:00:01]} Ke7 {[%emt 0:00:01]} 37. Nc6+ {[%emt 0:00:05]} Kd7 {[%emt 0:00:
02]} 38. Ne5+ {[%emt 0:00:02]} Ke7 {[%emt 0:00:02]} 39. Nc6+ {[%emt 0:00:07]}
Kf8 {[%emt 0:00:01]} 40. Rd1 {[%emt 0:00:03]} Nf6 {[%emt 0:00:03]} 41. a3 {
[%emt 0:00:02]} Nd7 {[%emt 0:00:02]} 42. b4 {[%emt 0:00:02]} a4 {[%emt 0:00:03]
} 43. Kc2 {[%emt 0:00:01]} f6 {[%emt 0:00:03]} 44. Be3 {[%emt 0:00:03]} Kf7 {
[%emt 0:00:01]} 45. f4 {[%emt 0:00:01]} Nf8 {[%emt 0:00:04]} 46. Kd3 {[%emt 0:
00:02]} e5 {[%emt 0:00:03]} 47. fxe5 {[%emt 0:00:01]} Ne6 {[%emt 0:00:04]} 48.
exf6 {[%emt 0:00:02]} Kxf6 {[%emt 0:00:02]} 49. Kc3 {[%emt 0:00:02]} Kf7 {
[%emt 0:00:03]} 50. Ne5+ {[%emt 0:00:01]} Kg8 {[%emt 0:00:02]} 51. Rf1 {
[%emt 0:00:03]} Kh7 {[%emt 0:00:03]} 52. Rd1 {[%emt 0:00:01]} Rd8 {[%emt 0:00:
01]} 53. Kb2 {[%emt 0:00:02]} Rc8 {[%emt 0:00:02]} 54. d5 {[%emt 0:00:02]} Bxe3
{[%emt 0:00:02]} 55. dxe6 {[%emt 0:00:02]} Bg5 {[%emt 0:00:01]} 56. Nf7 {
[%emt 0:00:02]} Bf6+ {[%emt 0:00:03]} 57. Kb1 {[%emt 0:00:02]} Re8 {[%emt 0:00:
02]} 58. Re1 {[%emt 0:00:02]} Kg8 {[%emt 0:00:02]} 59. Kc2 {[%emt 0:00:02]}
Rc8+ {[%emt 0:00:02]} 60. Kd3 {[%emt 0:00:02]} Re8 {[%emt 0:00:02]} 61. Re4 {
[%emt 0:00:02]} Rc8 {[%emt 0:00:01]} 62. Ke3 {[%emt 0:00:02]} Rc3+ {[%emt 0:00:
02]} 63. Ke2 {[%emt 0:00:02]} Rc2+ {[%emt 0:00:02]} 64. Kd1 {[%emt 0:00:02]}
Rc8 {[%emt 0:00:02]} 65. Ke2 {[%emt 0:00:02]} Rc2+ {[%emt 0:00:01]} 66. Kf3 {
[%emt 0:00:01]} Rc3+ {[%emt 0:00:01]} 67. Kf4 {[%emt 0:00:01]} Rc8 {[%emt 0:00:
06]} 68. Nd6 {[%emt 0:00:02]} Rc7 {[%emt 0:00:03]} 69. Ne8 {[%emt 0:00:03]} Kf8
{[%emt 0:00:04]} 70. Nxc7 {[%emt 0:00:01]} Ke7 {[%emt 0:00:02]} 71. Nd5+ {
[%emt 0:00:01]} Ke8 {[%emt 0:00:01]} 72. Nxf6+ {[%emt 0:00:03]} gxf6 {[%emt 0:
00:02]} 73. Kf5 {[%emt 0:00:02]} Ke7 {[%emt 0:00:00]} 74. Rd4 {[%emt 0:00:02]}
Ke8 {[%emt 0:00:01]} 75. Rd7 {[%emt 0:00:01]} Kf8 {[%emt 0:00:01]} 76. Kxf6 {
[%emt 0:00:02]} Kg8 {[%emt 0:00:01]} 77. e7 {[%emt 0:00:03]} Kh7 {[%emt 0:00:
01]} 78. e8=Q# {[%emt 0:00:03]} 1-0

[Event "FIDE Women World Blitz 2021"]
[Site "Warsaw"]
[Date "2021.12.29"]
[Round "8.12"]
[White "Dzagnidze, Nana"]
[Black "Vantika Agrawal"]
[Result "1/2-1/2"]
[ECO "D37"]
[WhiteElo "2524"]
[BlackElo "2329"]
[Annotator "ChessBase"]
[PlyCount "91"]
[EventDate "2021.12.29"]
[EventType "swiss"]
[EventCountry "POL"]
[Tiebreak "Cut1 Buchholz"]
[SourceTitle "playchess.com"]
[Source "ChessBase"]
[SourceQuality "1"]
[TimeControl "180+2"]

1. d4 {[%emt 0:00:01]} Nf6 {[%emt 0:00:01]} 2. c4 {[%emt 0:00:01]} e6 {[%emt 0:
00:02]} 3. Nf3 {[%emt 0:00:02]} d5 {[%emt 0:00:01]} 4. Nc3 {[%emt 0:00:01]} Be7
{[%emt 0:00:01]} 5. Bf4 {[%emt 0:00:04]} O-O {[%emt 0:00:02]} 6. e3 {[%emt 0:
00:00]} c5 {[%emt 0:00:01]} 7. dxc5 {[%emt 0:00:09]} Bxc5 {[%emt 0:00:02]} 8.
a3 {[%emt 0:00:02]} Nc6 {[%emt 0:00:02]} 9. Be2 {[%emt 0:00:16]} a6 {[%emt 0:
00:36]} 10. cxd5 {[%emt 0:00:42]} Nxd5 {[%emt 0:00:16]} 11. Nxd5 {[%emt 0:00:
04]} exd5 {[%emt 0:00:03]} 12. O-O {[%emt 0:00:05]} h6 {[%emt 0:00:12]} 13. Qc2
{[%emt 0:00:05]} Qe7 {[%emt 0:00:27]} 14. Rac1 {[%emt 0:00:13]} Ba7 {[%emt 0:
00:02]} 15. Rfd1 {[%emt 0:00:12]} Be6 {[%emt 0:00:05]} 16. Ne5 {[%emt 0:00:31]}
Rac8 {[%emt 0:00:13]} 17. Qd2 {[%emt 0:00:10]} Nxe5 {[%emt 0:00:24]} 18. Bxe5 {
[%emt 0:00:01]} Qg5 {[%emt 0:00:24]} 19. Bd4 {[%emt 0:00:12]} Bb8 {[%emt 0:00:
12]} 20. Bf3 {[%emt 0:00:05]} h5 {[%emt 0:00:10]} 21. Rxc8 {[%emt 0:00:13]}
Rxc8 {[%emt 0:00:02]} 22. Rc1 {[%emt 0:00:02]} Rxc1+ {[%emt 0:00:16]} 23. Qxc1
{[%emt 0:00:01]} h4 {[%emt 0:00:01]} 24. Qc2 {[%emt 0:00:16]} h3 {[%emt 0:00:
02]} 25. g3 {[%emt 0:00:03]} Bd6 {[%emt 0:00:07]} 26. Be2 {[%emt 0:00:08]} Bf5
{[%emt 0:00:04]} 27. Bd3 {[%emt 0:00:09]} Bxd3 {[%emt 0:00:02]} 28. Qxd3 {
[%emt 0:00:01]} Qg4 {[%emt 0:00:02]} 29. Kf1 {[%emt 0:00:07]} Qf3 {[%emt 0:00:
01]} 30. Qc2 {[%emt 0:00:03]} Qg2+ {[%emt 0:00:01]} 31. Ke2 {[%emt 0:00:01]}
Qxh2 {[%emt 0:00:05]} 32. Qc8+ {[%emt 0:00:00]} Kh7 {[%emt 0:00:01]} 33. Qf5+ {
[%emt 0:00:01]} Kg8 {[%emt 0:00:01]} 34. Qc8+ {[%emt 0:00:04]} Kh7 {[%emt 0:00:
01]} 35. Qf5+ {[%emt 0:00:03]} Kg8 {[%emt 0:00:01]} 36. Qxd5 {[%emt 0:00:02]}
Bf8 {[%emt 0:00:04]} 37. Qd8 {[%emt 0:00:03]} Qg2 {[%emt 0:00:02]} 38. Bc5 {
[%emt 0:00:01]} h2 {[%emt 0:00:02]} 39. Qxf8+ {[%emt 0:00:01]} Kh7 {[%emt 0:00:
01]} 40. Bd4 {[%emt 0:00:01]} f6 {[%emt 0:00:06]} 41. Bxf6 {[%emt 0:00:03]}
gxf6 {[%emt 0:00:01]} 42. Qf7+ {[%emt 0:00:01]} Kh6 {[%emt 0:00:02]} 43. Qxf6+
{[%emt 0:00:01]} Kh7 {[%emt 0:00:01]} 44. Qf7+ {[%emt 0:00:04]} Kh6 {[%emt 0:
00:01]} 45. Qf6+ {[%emt 0:00:03]} Kh7 {[%emt 0:00:01]} 46. Qf7+ {[%emt 0:00:01]
} 1/2-1/2

[Event "FIDE Women World Blitz 2021"]
[Site "Warsaw"]
[Date "2021.12.29"]
[Round "8.12"]
[White "Budkiewicz, Magdalena"]
[Black "Da Silva, Cibele Florencio"]
[Result "1-0"]
[ECO "C72"]
[WhiteElo "1624"]
[BlackElo "1405"]
[Annotator "NA"]
[PlyCount "29"]
[EventDate "2021.12.29"]
[EventType "swiss"]
[EventCountry "POL"]
[Tiebreak "Cut1 Buchholz"]
[SourceTitle "playchess.com"]
[Source "ChessBase"]
[SourceQuality "1"]
[TimeControl "180+2"]

1. e4 {[%emt 0:00:01]} e5 {[%emt 0:00:01]} 2. Nf3 {[%emt 0:00:01]} Nc6 {
[%emt 0:00:01]} 3. Bb5 {[%emt 0:00:01]} d6 {[%emt 0:00:11]} 4. O-O {[%emt 0:00:
02]} Bd7 {[%emt 0:00:02]} 5. c3 {[%emt 0:00:05]} a6 {[%emt 0:00:01]} 6. Ba4 {
[%emt 0:00:02]} b5 {[%emt 0:00:01]} 7. Bb3 {[%emt 0:00:02]} h6 {[%emt 0:00:02]}
8. h3 {[%emt 0:00:15]} Nf6 {[%emt 0:00:02]} 9. Re1 {[%emt 0:00:01]} Be7 {
[%emt 0:00:03]} 10. d4 {[%emt 0:00:01]} Nh5 {[%emt 0:00:19]} 11. Nxe5 {[%emt 0:
00:19]} dxe5 {[%emt 0:00:53]} 12. Qxh5 {[%emt 0:00:03]} g6 {[%emt 0:00:37]} 13.
Qf3 {[%emt 0:00:08]} Be6 {[%emt 0:00:07]} 14. d5 {[%emt 0:00:01]} Bxd5 {
[%emt 0:00:39]} 15. Bxd5 {[%emt 0:00:03]} 1-0

[Event "FIDE Women World Blitz 2021"]
[Site "Warsaw"]
[Date "2021.12.29"]
[Round "8.13"]
[White "Buksa, Nataliya"]
[Black "Muzychuk, Mariya"]
[Result "1/2-1/2"]
[ECO "D00"]
[WhiteElo "2199"]
[BlackElo "2536"]
[Annotator "ChessBase"]
[PlyCount "106"]
[EventDate "2021.12.29"]
[EventType "swiss"]
[EventCountry "POL"]
[Tiebreak "Cut1 Buchholz"]
[SourceTitle "playchess.com"]
[Source "ChessBase"]
[SourceQuality "1"]
[TimeControl "180+2"]

1. d4 {[%emt 0:00:01]} d5 {[%emt 0:00:00]} 2. Nc3 {[%emt 0:00:01]} Nf6 {
[%emt 0:00:02]} 3. Bf4 {[%emt 0:00:00]} e6 {[%emt 0:00:00]} 4. Nb5 {[%emt 0:00:
01]} Bb4+ {[%emt 0:00:02]} 5. c3 {[%emt 0:00:02]} Ba5 {[%emt 0:00:01]} 6. b4 {
[%emt 0:00:04]} Bb6 {[%emt 0:00:02]} 7. a4 {[%emt 0:00:01]} a5 {[%emt 0:00:04]}
8. e3 {[%emt 0:00:08]} O-O {[%emt 0:00:03]} 9. Nf3 {[%emt 0:00:02]} Qe7 {
[%emt 0:00:08]} 10. Qb3 {[%emt 0:00:12]} Na6 {[%emt 0:00:11]} 11. bxa5 {
[%emt 0:00:07]} Bxa5 {[%emt 0:00:01]} 12. Bd3 {[%emt 0:00:01]} h6 {[%emt 0:00:
08]} 13. O-O {[%emt 0:00:02]} Rd8 {[%emt 0:00:05]} 14. h3 {[%emt 0:00:32]} c6 {
[%emt 0:00:09]} 15. Na3 {[%emt 0:00:02]} c5 {[%emt 0:00:01]} 16. c4 {[%emt 0:
00:02]} cxd4 {[%emt 0:00:08]} 17. exd4 {[%emt 0:00:03]} dxc4 {[%emt 0:00:11]}
18. Nxc4 {[%emt 0:00:01]} Bc7 {[%emt 0:00:07]} 19. Bxc7 {[%emt 0:00:02]} Nxc7 {
[%emt 0:00:06]} 20. Nb6 {[%emt 0:00:09]} Rb8 {[%emt 0:00:05]} 21. Rfc1 {
[%emt 0:00:10]} Ncd5 {[%emt 0:00:07]} 22. a5 {[%emt 0:00:04]} Nxb6 {[%emt 0:00:
34]} 23. axb6 {[%emt 0:00:01]} Qd6 {[%emt 0:00:00]} 24. Bc4 {[%emt 0:00:50]}
Bd7 {[%emt 0:00:08]} 25. Rd1 {[%emt 0:00:01]} Bc6 {[%emt 0:00:07]} 26. Ne5 {
[%emt 0:00:02]} Bd5 {[%emt 0:00:04]} 27. Rac1 {[%emt 0:00:06]} Rbc8 {[%emt 0:
00:11]} 28. Bxd5 {[%emt 0:00:23]} Nxd5 {[%emt 0:00:06]} 29. Qf3 {[%emt 0:00:09]
} Qe7 {[%emt 0:00:11]} 30. Rxc8 {[%emt 0:00:12]} Rxc8 {[%emt 0:00:00]} 31. Rb1
{[%emt 0:00:01]} Rc3 {[%emt 0:00:08]} 32. Qe4 {[%emt 0:00:11]} Qd6 {[%emt 0:00:
07]} 33. Nf3 {[%emt 0:00:04]} Rc6 {[%emt 0:00:06]} 34. Ra1 {[%emt 0:00:03]} Rc8
{[%emt 0:00:13]} 35. Rb1 {[%emt 0:00:02]} Nc3 {[%emt 0:00:03]} 36. Qxb7 {
[%emt 0:00:02]} Rb8 {[%emt 0:00:03]} 37. Qc7 {[%emt 0:00:01]} Ne4 {[%emt 0:00:
26]} 38. Qxd6 {[%emt 0:00:10]} Nxd6 {[%emt 0:00:00]} 39. Ne5 {[%emt 0:00:01]}
Rb7 {[%emt 0:00:01]} 40. Nc6 {[%emt 0:00:05]} Nc4 {[%emt 0:00:03]} 41. Ra1 {
[%emt 0:00:07]} Rxb6 {[%emt 0:00:02]} 42. Ra8+ {[%emt 0:00:01]} Kh7 {[%emt 0:
00:01]} 43. Nd8 {[%emt 0:00:02]} Kg6 {[%emt 0:00:02]} 44. Ra7 {[%emt 0:00:01]}
Nd6 {[%emt 0:00:02]} 45. Rd7 {[%emt 0:00:02]} Ra6 {[%emt 0:00:07]} 46. g4 {
[%emt 0:00:02]} Kf6 {[%emt 0:00:02]} 47. Kg2 {[%emt 0:00:00]} Rb6 {[%emt 0:00:
01]} 48. Kg3 {[%emt 0:00:02]} g5 {[%emt 0:00:01]} 49. Kg2 {[%emt 0:00:02]} Kg6
{[%emt 0:00:03]} 50. Kf3 {[%emt 0:00:04]} Rb3+ {[%emt 0:00:02]} 51. Kg2 {
[%emt 0:00:01]} Rb6 {[%emt 0:00:01]} 52. Kf3 {[%emt 0:00:01]} Ra6 {[%emt 0:00:
03]} 53. Kg2 {[%emt 0:00:01]} Rb6 {[%emt 0:00:03]} 1/2-1/2

[Event "FIDE Women World Blitz 2021"]
[Site "Warsaw"]
[Date "2021.12.29"]
[Round "8.13"]
[White "Zabrzanska, Weronika"]
[Black "Brambilla, Renee Blandy T."]
[Result "1-0"]
[ECO "B22"]
[WhiteElo "1596"]
[BlackElo "1651"]
[Annotator "NA"]
[PlyCount "46"]
[EventDate "2021.12.29"]
[EventType "swiss"]
[EventCountry "POL"]
[Tiebreak "Cut1 Buchholz"]
[SourceTitle "playchess.com"]
[Source "ChessBase"]
[SourceQuality "1"]
[TimeControl "180+2"]

1. e4 {[%emt 0:00:01]} c5 {[%emt 0:00:00]} 2. c3 {[%emt 0:00:01]} g6 {[%emt 0:
00:08]} 3. d4 {[%emt 0:00:02]} cxd4 {[%emt 0:00:02]} 4. cxd4 {[%emt 0:00:01]}
Bg7 {[%emt 0:00:02]} 5. Nf3 {[%emt 0:00:01]} Nf6 {[%emt 0:00:02]} 6. Bd3 {
[%emt 0:00:02]} O-O {[%emt 0:00:06]} 7. O-O {[%emt 0:00:01]} Nc6 {[%emt 0:00:
08]} 8. Nc3 {[%emt 0:00:03]} d6 {[%emt 0:00:04]} 9. h3 {[%emt 0:00:04]} Bd7 {
[%emt 0:00:13]} 10. a3 {[%emt 0:00:03]} Rc8 {[%emt 0:00:02]} 11. Be3 {[%emt 0:
00:02]} a6 {[%emt 0:00:13]} 12. Rc1 {[%emt 0:00:01]} Rc7 {[%emt 0:00:07]} 13.
Qc2 {[%emt 0:00:14]} Qc8 {[%emt 0:00:28]} 14. Nd5 {[%emt 0:00:05]} Nxd5 {
[%emt 0:00:16]} 15. exd5 {[%emt 0:00:02]} Nxd4 {[%emt 0:00:40]} 16. Qxc7 {
[%emt 0:00:03]} Nxf3+ {[%emt 0:00:06]} 17. gxf3 {[%emt 0:00:01]} Bxb2 {[%emt 0:
00:16]} 18. Qxc8 {[%emt 0:00:21]} Bxc8 {[%emt 0:00:01]} 19. Rc7 {[%emt 0:00:03]
} Bxh3 {[%emt 0:00:11]} 20. Rb1 {[%emt 0:00:09]} Bxa3 {[%emt 0:00:10]} 21.
Rbxb7 {[%emt 0:00:10]} a5 {[%emt 0:00:20]} 22. Rxe7 {[%emt 0:00:04]} Bb4 {
[%emt 0:00:02]} 23. Bh6 {[%emt 0:00:15]} Bf5 1-0

[Event "FIDE Women World Blitz 2021"]
[Site "Warsaw"]
[Date "2021.12.29"]
[Round "8.14"]
[White "Majdan, Joanna"]
[Black "Lagno, Kateryna"]
[Result "1-0"]
[ECO "C00"]
[WhiteElo "2325"]
[BlackElo "2550"]
[Annotator "ChessBase"]
[PlyCount "79"]
[EventDate "2021.12.29"]
[EventType "swiss"]
[EventCountry "POL"]
[Tiebreak "Cut1 Buchholz"]
[SourceTitle "playchess.com"]
[Source "ChessBase"]
[SourceQuality "1"]
[TimeControl "180+2"]

1. e4 {[%emt 0:00:01]} e5 {[%emt 0:00:01]} 2. Nf3 {[%emt 0:00:01]} Nc6 {
[%emt 0:00:01]} 3. Bb5 {[%emt 0:00:01]} Nf6 {[%emt 0:00:01]} 4. d3 {[%emt 0:00:
05]} Bc5 {[%emt 0:00:01]} 5. c3 {[%emt 0:00:02]} O-O {[%emt 0:00:05]} 6. O-O {
[%emt 0:00:04]} d5 {[%emt 0:00:07]} 7. Nbd2 {[%emt 0:00:09]} dxe4 {[%emt 0:00:
03]} 8. dxe4 {[%emt 0:00:01]} Qe7 {[%emt 0:00:07]} 9. h3 {[%emt 0:00:06]} Nb8 {
[%emt 0:00:20]} 10. b4 {[%emt 0:00:04]} a6 {[%emt 0:00:04]} 11. Bd3 {[%emt 0:
00:16]} Ba7 {[%emt 0:00:03]} 12. Nc4 {[%emt 0:00:02]} Nbd7 {[%emt 0:00:13]} 13.
Ne3 {[%emt 0:00:02]} Rd8 {[%emt 0:00:21]} 14. Nf5 {[%emt 0:00:15]} Qe8 {
[%emt 0:00:02]} 15. N3h4 {[%emt 0:00:09]} Nf8 {[%emt 0:00:13]} 16. Qf3 {
[%emt 0:00:04]} Ng6 {[%emt 0:00:09]} 17. Bg5 {[%emt 0:00:26]} Bxf5 {[%emt 0:00:
11]} 18. Nxf5 {[%emt 0:00:02]} Qe6 {[%emt 0:00:09]} 19. Rfd1 {[%emt 0:00:03]}
c5 {[%emt 0:00:35]} 20. bxc5 {[%emt 0:00:03]} Bxc5 {[%emt 0:00:01]} 21. Bc2 {
[%emt 0:00:01]} Bf8 {[%emt 0:00:13]} 22. Bb3 {[%emt 0:00:02]} Qc6 {[%emt 0:00:
01]} 23. Nh6+ {[%emt 0:00:17]} gxh6 {[%emt 0:00:02]} 24. Bxf6 {[%emt 0:00:02]}
Rxd1+ {[%emt 0:00:08]} 25. Rxd1 {[%emt 0:00:03]} Qc7 {[%emt 0:00:03]} 26. h4 {
[%emt 0:00:09]} Bg7 {[%emt 0:00:02]} 27. h5 {[%emt 0:00:06]} Bxf6 {[%emt 0:00:
18]} 28. hxg6 {[%emt 0:00:04]} Kg7 {[%emt 0:00:08]} 29. gxf7 {[%emt 0:00:06]}
Rd8 {[%emt 0:00:01]} 30. Qg4+ {[%emt 0:00:06]} Bg5 {[%emt 0:00:00]} 31. Rxd8 {
[%emt 0:00:07]} Qxd8 {[%emt 0:00:01]} 32. Qe6 {[%emt 0:00:03]} Qe7 {[%emt 0:00:
09]} 33. Qc8 {[%emt 0:00:05]} Qf8 {[%emt 0:00:07]} 34. Qxb7 {[%emt 0:00:02]} a5
{[%emt 0:00:01]} 35. Bd5 {[%emt 0:00:06]} a4 {[%emt 0:00:04]} 36. c4 {[%emt 0:
00:01]} a3 {[%emt 0:00:01]} 37. c5 {[%emt 0:00:02]} Be7 {[%emt 0:00:06]} 38. c6
{[%emt 0:00:01]} Bd6 {[%emt 0:00:03]} 39. c7 {[%emt 0:00:02]} Bxc7 {[%emt 0:00:
02]} 40. Qxc7 {[%emt 0:00:01]} 1-0